[Event "XIII Mediterranean Championship 2023"]
[Site "Castell-Platja d Aro"]
[Date "2023.11.07"]
[Round "5.21"]
[White "Mateu Guiu, Esteve"]
[Black "De Lomas Busquets, Alba"]
[Result "1/2-1/2"]
[ECO "E06"]
[WhiteElo "2075"]
[BlackElo "1873"]
[Annotator "RC"]
[PlyCount "156"]
[EventDate "2023.10.26"]
[EventType "swiss"]
[EventCountry "ESP"]
[SourceTitle "playchess.com"]
[Source "ChessBase"]
[SourceQuality "1"]
[TimeControl "5400+30"]

1. d4 {[%emt 1:31:00]} d5 {[%emt 1:31:00]} 2. c4 {[%emt 0:00:30]} e6 {[%emt 0:00:30]} 3. Nf3 {[%emt 0:00:30]} Be7 {[%emt 0:00:30]} 4. g3 {[%emt 0:00:30]} Nf6 {[%emt 0:00:30]} 5. Bg2 {[%emt 0:00:30]} h6 {[%emt 0:00:30]} 6. Nc3 {[%emt 0:00:30]} O-O {[%emt 0:00:30]} 7. O-O {[%emt 0:00:30]} dxc4 {[%emt 0:00:30]} 8. Ne5 {[%emt 0:00:30]} c5 {[%emt 0:00:30]} 9. dxc5 {[%emt 0:00:30]} Bxc5 {[%emt 0:00:30]} 10. Nxc4 {[%emt 0:00:30]} Nc6 {[%emt 0:00:30]} 11. Bf4 {[%emt 0:00:30]} Qe7 {[%emt 0:00:30]} 12. Bd6 {[%emt 0:00:30]} Bxd6 {[%emt 0:00:30]} 13. Qxd6 {[%emt 0:00:30]} Nd5 {[%emt 0:00:30]} 14. Qxe7 {[%emt 0:00:30]} Ncxe7 {[%emt 0:00:30]} 15. Rac1 {[%emt 0:00:30]} Rb8 {[%emt 0:00:30]} 16. Rfd1 {[%emt 0:00:30]} b5 {[%emt 0:00:30]} 17. Nxd5 {[%emt 0:00:30]} Nxd5 {[%emt 0:00:30]} 18. Ne5 {[%emt 0:00:30]} Re8 {[%emt 0:00:30]} 19. e4 {[%emt 0:00:30]} Nf6 {[%emt 0:00:30]} 20. Rc7 {[%emt 0:00:30]} Bb7 {[%emt 0:00:30]} 21. Nxf7 {[%emt 0:00:30]} Rec8 {[%emt 0:00:30]} 22. Rxc8+ {[%emt 0:00:30]} Rxc8 {[%emt 0:00:30]} 23. Nd6 {[%emt 0:00:30]} Rd8 {[%emt 0:00:30]} 24. e5 {[%emt 0:00:30]} Bxg2 {[%emt 0:00:30]} 25. Kxg2 {[%emt 0:00:30]} Ng4 {[%emt 0:00:30]} 26. Re1 {[%emt 0:00:30]} Nxe5 {[%emt 0:00:30]} 27. Rxe5 {[%emt 0:00:30]} Rxd6 {[%emt 0:00:30]} 28. Rxb5 {[%emt 0:00:30]} Rd7 {[%emt 0:00:30]} 29. a4 {[%emt 0:00:30]} Kf7 {[%emt 0:00:30]} 30. h4 {[%emt 0:00:30]} g6 {[%emt 0:00:30]} 31. Rb8 {[%emt 0:00:30]} Kf6 {[%emt 0:00:30]} 32. b4 {[%emt 0:00:30]} Rd4 {[%emt 0:00:30]} 33. Kf3 {[%emt 0:00:30]} g5 {[%emt 0:00:30]} 34. hxg5+ {[%emt 0:00:30]} hxg5 {[%emt 0:00:30]} 35. Rb5 {[%emt 0:00:30]} e5 {[%emt 0:00:30]} 36. Ke3 {[%emt 0:00:30]} g4 {[%emt 0:00:30]} 37. a5 {[%emt 0:00:30]} Kf5 {[%emt 0:00:30]} 38. Rb7 {[%emt 0:00:30]} Kf6 {[%emt 0:00:30]} 39. b5 {[%emt 0:00:30]} Rd5 {[%emt 0:00:30]} 40. b6 {[%emt 0:00:30]} Rxa5 {[%emt 0:00:30]} 41. bxa7 {[%emt 0:00:30]} Ke6 {[%emt 0:00:30]} 42. Kd3 {[%emt 0:00:30]} Kd6 {[%emt 0:00:30]} 43. Ke4 {[%emt 0:00:30]} Ke6 {[%emt 0:00:30]} 44. Rh7 {[%emt 0:00:30]} Ra4+ {[%emt 0:00:30]} 45. Kd3 {[%emt 0:00:30]} Kd5 {[%emt 0:00:30]} 46. Kc3 {[%emt 0:00:30]} Kc5 {[%emt 0:00:30]} 47. Kb3 {[%emt 0:00:30]} Ra6 {[%emt 0:00:30]} 48. Rg7 {[%emt 0:00:30]} Rb6+ {[%emt 0:00:30]} 49. Kc3 {[%emt 0:00:30]} Ra6 {[%emt 0:00:30]} 50. Kd3 {[%emt 0:00:30]} Kd5 {[%emt 0:00:30]} 51. Ke3 {[%emt 0:00:30]} Ra3+ {[%emt 0:00:30]} 52. Ke2 {[%emt 0:00:30]} Ra2+ {[%emt 0:00:30]} 53. Kf1 {[%emt 0:00:30]} Ke4 {[%emt 0:00:30]} 54. Kg2 {[%emt 0:00:30]} Kf5 {[%emt 0:00:30]} 55. Rf7+ {[%emt 0:00:30]} Ke6 {[%emt 0:00:30]} 56. Rg7 {[%emt 0:00:30]} Kf5 {[%emt 0:00:30]} 57. Kf1 {[%emt 0:00:30]} Ke4 {[%emt 0:00:30]} 58. Kg2 {[%emt 0:00:30]} Kf5 {[%emt 0:00:30]} 59. Kf1 {[%emt 0:00:30]} Ke4 {[%emt 0:00:30]} 60. Ke1 {[%emt 0:00:30]} Kd3 {[%emt 0:00:30]} 61. Rd7+ {[%emt 0:00:30]} Kc3 {[%emt 0:00:30]} 62. Kd1 {[%emt 0:00:30]} Kc4 {[%emt 0:00:30]} 63. Kc1 {[%emt 0:00:30]} Kc3 {[%emt 0:00:30]} 64. Kd1 {[%emt 0:00:30]} Kc4 {[%emt 0:00:30]} 65. Ke1 {[%emt 0:00:30]} Kc5 {[%emt 0:00:30]} 66. Kf1 {[%emt 0:00:30]} Kc6 {[%emt 0:00:30]} 67. Rg7 {[%emt 0:00:30]} Kd5 {[%emt 0:00:30]} 68. Kg2 {[%emt 0:00:30]} Ke6 {[%emt 0:00:30]} 69. Rxg4 {[%emt 0:00:30]} Rxa7 {[%emt 0:00:30]} 70. Rb4 {[%emt 0:00:30]} Kf5 {[%emt 0:00:30]} 71. g4+ {[%emt 0:00:30]} Kg5 {[%emt 0:00:30]} 72. Kg3 {[%emt 0:00:30]} Ra3+ {[%emt 0:00:30]} 73. f3 {[%emt 0:00:30]} Ra5 {[%emt 0:00:30]} 74. Rb8 {[%emt 0:00:30]} Ra3 {[%emt 0:00:30]} 75. Re8 {[%emt 0:00:30]} Kf6 {[%emt 0:00:30]} 76. Rf8+ {[%emt 0:00:30]} Kg7 {[%emt 0:00:30]} 77. Rf5 {[%emt 0:00:30]} e4 {[%emt 0:00:30]} 78. Rf4 {[%emt 0:00:30]} Rxf3+ {[%emt 0:00:30]} 1/2-1/2

[Event "XIII Mediterranean Championship 2023"]
[Site "Castell-Platja d Aro"]
[Date "2023.11.07"]
[Round "5.22"]
[White "Pla Almenar, Nel"]
[Black "Vinals Rioja, Jaume"]
[Result "1-0"]
[ECO "B76"]
[WhiteElo "2070"]
[BlackElo "1838"]
[Annotator "NA RC"]
[PlyCount "133"]
[EventDate "2023.10.26"]
[EventType "swiss"]
[EventCountry "ESP"]
[SourceTitle "playchess.com"]
[Source "ChessBase"]
[SourceQuality "1"]
[TimeControl "5400+30"]

1. e4 {[%emt 0:00:04]} c5 {[%emt 0:00:19]} 2. Nf3 {[%emt 0:00:20]} d6 {[%emt 0:00:14]} 3. d4 {[%emt 0:00:08]} cxd4 {[%emt 0:00:21]} 4. Nxd4 {[%emt 0:00:09]} Nf6 {[%emt 0:00:14]} 5. Nc3 {[%emt 0:00:20]} g6 {[%emt 0:00:41]} 6. Be3 {[%emt 0:00:39]} Bg7 {[%emt 0:00:12]} 7. f3 {[%emt 0:01:46]} O-O {[%emt 0:00:32]} 8. Qd2 {[%emt 1:31:04]} Nc6 {[%emt 0:00:18]} 9. O-O-O {[%emt 0:00:00]} Nxd4 {[%emt 1:32:09]} 10. Bxd4 {[%emt 0:00:00]} Qa5 {[%emt 0:00:00]} 11. Kb1 {[%emt 0:00:00]} Re8 {[%emt 0:00:00]} 12. Bc4 {[%emt 0:00:00]} Be6 {[%emt 0:01:30]} 13. Bb3 {[%emt 0:02:30]} b5 {[%emt 0:00:30]} 14. g4 {[%emt 0:00:30]} b4 {[%emt 0:00:00]} 15. Ne2 {[%emt 0:00:00]} Qb5 {[%emt 0:01:00]} 16. g5 {[%emt 0:01:00]} Nh5 {[%emt 0:00:30]} 17. Bxg7 {[%emt 0:00:30]} Nxg7 {[%emt 0:00:00]} 18. Nd4 {[%emt 0:00:30]} Qc5 {[%emt 0:01:00]} 19. Nxe6 {[%emt 0:00:30]} Nxe6 {[%emt 0:00:30]} 20. Bxe6 {[%emt 0:00:30]} fxe6 {[%emt 0:00:00]} 21. h4 {[%emt 0:00:30]} Rf8 {[%emt 0:01:00]} 22. h5 {[%emt 0:00:30]} Rxf3 {[%emt 0:00:30]} 23. hxg6 {[%emt 0:00:30]} Rf2 {[%emt 0:00:00]} 24. gxh7+ {[%emt 0:00:00]} Kh8 {[%emt 0:01:00]} 25. Qd4+ {[%emt 0:00:00]} Qxd4 {[%emt 0:00:00]} 26. Rxd4 {[%emt 0:00:00]} Raf8 {[%emt 0:00:00]} 27. b3 {[%emt 0:02:00]} a5 {[%emt 0:01:30]} 28. e5 {[%emt 0:00:30]} d5 {[%emt 0:00:30]} 29. Rdh4 {[%emt 0:00:00]} Rg2 {[%emt 0:00:30]} 30. Rh6 {[%emt 0:01:00]} Rxg5 {[%emt 0:00:00]} 31. Rxe6 {[%emt 0:00:00]} Rf7 {[%emt 0:00:00]} 32. Kb2 {[%emt 0:01:00]} Rxh7 {[%emt 0:00:00]} 33. Rxh7+ {[%emt 0:00:00]} Kxh7 {[%emt 0:02:00]} 34. Rxe7+ {[%emt 0:00:00]} Kg6 {[%emt 0:00:30]} 35. Ra7 {[%emt 0:01:30]} Rxe5 {[%emt 0:00:30]} 36. Rxa5 {[%emt 0:00:30]} Kf6 {[%emt 0:00:30]} 37. Rb5 {[%emt 0:00:00]} Ke6 {[%emt 0:00:30]} 38. Rxb4 {[%emt 0:00:00]} Kd6 {[%emt 0:00:30]} 39. a4 {[%emt 0:01:30]} Kc5 {[%emt 0:00:30]} 40. Rb8 {[%emt 0:00:30]} Re6 {[%emt 0:00:30]} 41. Ka3 {[%emt 0:00:30]} d4 {[%emt 0:00:00]} 42. Rc8+ {[%emt 0:00:30]} Kb6 {[%emt 0:01:00]} 43. Kb4 {[%emt 0:00:00]} Re4 {[%emt 0:00:30]} 44. Kc4 {[%emt 0:01:00]} Rh4 {[%emt 0:00:30]} 45. Rd8 {[%emt 0:00:30]} Rh2 {[%emt 0:00:30]} 46. Rd6+ {[%emt 0:00:00]} Kc7 {[%emt 0:00:30]} 47. Rxd4 {[%emt 0:00:00]} Rxc2+ {[%emt 0:00:00]} 48. Kb5 {[%emt 0:01:30]} Rh2 {[%emt 0:01:00]} 49. Rd5 {[%emt 0:00:30]} Rh7 {[%emt 0:00:30]} 50. a5 {[%emt 0:00:30]} Kb7 {[%emt 0:00:30]} 51. b4 {[%emt 0:00:30]} Rg7 {[%emt 0:00:30]} 52. a6+ {[%emt 0:00:30]} Ka7 {[%emt 0:00:30]} 53. Kc6 {[%emt 0:00:30]} Rg6+ {[%emt 0:00:30]} 54. Rd6 {[%emt 0:00:30]} Rg1 {[%emt 0:00:30]} 55. Rd7+ {[%emt 0:00:30]} Ka8 {[%emt 0:00:30]} 56. b5 {[%emt 0:00:30]} Rc1+ {[%emt 0:00:30]} 57. Kb6 {[%emt 0:00:00]} Rc8 {[%emt 0:00:30]} 58. Rf7 {[%emt 0:01:00]} Rh8 {[%emt 0:00:00]} 59. Rc7 {[%emt 0:00:30]} Kb8 {[%emt 0:00:00]} 60. Rb7+ {[%emt 0:00:00]} Ka8 {[%emt 0:01:30]} 61. Re7 {[%emt 0:00:00]} Rg8 {[%emt 0:00:00]} 62. Kc7 {[%emt 0:00:00]} Rc8+ {[%emt 0:01:00]} 63. Kd7 {[%emt 0:02:00]} Rc1 {[%emt 0:00:30]} 64. b6 {[%emt 0:00:30]} Rd1+ {[%emt 0:00:30]} 65. Kc8 {[%emt 0:00:30]} Rc1+ {[%emt 0:00:30]} 66. Rc7 {[%emt 0:00:30]} Rxc7+ {[%emt 0:00:00]} 67. bxc7 {[%emt 0:00:30]} 1-0

[Event "XIII Mediterranean Championship 2023"]
[Site "Castell-Platja d Aro"]
[Date "2023.11.07"]
[Round "5.23"]
[White "Vinolas Anglada, Laura"]
[Black "Clot Chico, Arnau"]
[Result "0-1"]
[ECO "C16"]
[WhiteElo "1884"]
[BlackElo "2008"]
[Annotator "RC"]
[PlyCount "82"]
[EventDate "2023.10.26"]
[EventType "swiss"]
[EventCountry "ESP"]
[SourceTitle "playchess.com"]
[Source "ChessBase"]
[SourceQuality "1"]
[TimeControl "5400+30"]

1. e4 {[%emt 0:03:04]} e6 {[%emt 0:00:47]} 2. d4 {[%emt 0:00:05]} d5 {[%emt 0:00:06]} 3. Nc3 {[%emt 0:00:08]} Bb4 {[%emt 0:00:31]} 4. e5 {[%emt 0:00:09]} b6 {[%emt 0:02:35]} 5. Nf3 {[%emt 0:02:14]} Ba6 {[%emt 0:01:24]} 6. Bxa6 {[%emt 0:01:20]} Bxc3+ {[%emt 0:00:52]} 7. bxc3 {[%emt 0:00:22]} Nxa6 {[%emt 0:00:05]} 8. O-O {[%emt 0:15:46]} Ne7 {[%emt 0:02:32]} 9. Bg5 {[%emt 0:04:27]} c5 {[%emt 0:03:29]} 10. Ne1 {[%emt 0:02:44]} cxd4 {[%emt 0:01:28]} 11. cxd4 {[%emt 0:00:24]} Rc8 {[%emt 0:02:18]} 12. c3 {[%emt 0:05:42]} Nb8 {[%emt 0:16:32]} 13. Rc1 {[%emt 0:09:07]} Qd7 {[%emt 0:05:19]} 14. Nd3 {[%emt 0:02:18]} Nbc6 {[%emt 0:00:38]} 15. Qg4 {[%emt 0:01:02]} Nf5 {[%emt 0:02:46]} 16. Qh3 {[%emt 0:03:03]} O-O {[%emt 0:10:57]} 17. g4 {[%emt 0:02:05]} Nfe7 {[%emt 0:01:27]} 18. Qf3 {[%emt 0:23:42]} Kh8 {[%emt 0:10:41]} 19. Kh1 {[%emt 0:01:24]} Ng8 {[%emt 0:00:40]} 20. Qg3 {[%emt 0:01:17]} f6 {[%emt 0:01:06]} 21. Bf4 {[%emt 0:00:27]} fxe5 {[%emt 0:01:25]} 22. Nxe5 {[%emt 0:00:13]} Nxe5 {[%emt 0:00:24]} 23. Bxe5 {[%emt 0:00:06]} Qf7 {[%emt 0:01:06]} 24. Kg2 {[%emt 0:00:34]} Nf6 {[%emt 0:01:14]} 25. f3 {[%emt 0:21:17]} Rc4 {[%emt 0:01:06]} 26. Rfe1 {[%emt 0:00:00]} Rfc8 {[%emt 0:02:48]} 27. Re3 {[%emt 0:00:00]} Nd7 {[%emt 0:00:39]} 28. Rc2 {[%emt 0:00:00]} h6 {[%emt 0:03:14]} 29. h4 {[%emt 0:00:00]} b5 {[%emt 0:02:13]} 30. g5 {[%emt 0:00:00]} Nxe5 {[%emt 0:00:25]} 31. Qxe5 {[%emt 0:00:00]} b4 {[%emt 0:06:51]} 32. Qd6 {[%emt 0:00:00]} R8c6 {[%emt 0:03:59]} 33. Qd8+ {[%emt 0:00:00]} Kh7 {[%emt 0:00:32]} 34. Qa5 {[%emt 0:00:00]} Qf4 {[%emt 0:03:17]} 35. Rd3 {[%emt 0:00:00]} Qxh4 {[%emt 0:03:05]} 36. gxh6 {[%emt 0:00:00]} e5 {[%emt 0:00:30]} 37. Kf1 {[%emt 0:00:00]} Qh1+ {[%emt 0:02:23]} 38. Ke2 {[%emt 0:00:00]} Rg6 {[%emt 0:00:40]} 39. Rdd2 {[%emt 0:00:00]} Rg2+ {[%emt 0:03:12]} 40. Kd3 {[%emt 0:00:00]} e4+ {[%emt 0:00:49]} 41. Ke3 {[%emt 0:00:27]} Qxh6+ {[%emt 0:00:10]} 0-1

[Event "XIII Mediterranean Championship 2023"]
[Site "Castell-Platja d Aro"]
[Date "2023.11.07"]
[Round "5.24"]
[White "Zvereva, Marija"]
[Black "Lunin Bohomolets, Iliia"]
[Result "1/2-1/2"]
[ECO "B40"]
[WhiteElo "2144"]
[BlackElo "1850"]
[Annotator "RC"]
[PlyCount "62"]
[EventDate "2023.10.26"]
[EventType "swiss"]
[EventCountry "ESP"]
[SourceTitle "playchess.com"]
[Source "ChessBase"]
[SourceQuality "1"]
[TimeControl "5400+30"]

1. e4 {[%emt 0:00:15]} c5 {[%emt 0:02:07]} 2. Nf3 {[%emt 0:00:23]} e6 {[%emt 0:00:50]} 3. g3 {[%emt 0:00:22]} Nc6 {[%emt 0:00:48]} 4. Bg2 {[%emt 0:00:14]} Nf6 {[%emt 0:01:21]} 5. d3 {[%emt 0:00:24]} e5 {[%emt 0:02:56]} 6. O-O {[%emt 0:04:00]} Be7 {[%emt 0:00:09]} 7. Nbd2 {[%emt 0:01:09]} O-O {[%emt 0:00:53]} 8. Nc4 {[%emt 0:01:05]} d6 {[%emt 0:00:39]} 9. a4 {[%emt 0:00:46]} h6 {[%emt 0:11:32]} 10. c3 {[%emt 0:04:18]} Be6 {[%emt 0:04:28]} 11. Re1 {[%emt 0:01:44]} a6 {[%emt 0:02:05]} 12. Na3 {[%emt 0:23:42]} Qb6 {[%emt 0:17:38]} 13. Qe2 {[%emt 0:19:30]} Na5 {[%emt 0:06:05]} 14. Nd2 {[%emt 0:01:25]} Qc7 {[%emt 0:12:23]} 15. f4 {[%emt 0:10:48]} Bd7 {[%emt 0:09:37]} 16. Nac4 {[%emt 0:08:13]} b5 {[%emt 0:03:02]} 17. axb5 {[%emt 0:00:59]} axb5 {[%emt 0:00:15]} 18. Ne3 {[%emt 0:00:48]} Nc6 {[%emt 0:02:09]} 19. Rxa8 {[%emt 0:00:46]} Rxa8 {[%emt 0:00:04]} 20. Nd5 {[%emt 0:01:14]} Qb8 {[%emt 0:02:48]} 21. Nxe7+ {[%emt 0:02:33]} Nxe7 {[%emt 0:00:05]} 22. fxe5 {[%emt 0:00:05]} dxe5 {[%emt 0:00:39]} 23. Nf1 {[%emt 0:00:14]} Ra4 {[%emt 0:07:06]} 24. Ne3 {[%emt 0:00:58]} Be6 {[%emt 0:00:46]} 25. Nd5 {[%emt 0:09:28]} Nexd5 {[%emt 0:02:09]} 26. exd5 {[%emt 0:00:06]} Bxd5 {[%emt 0:02:20]} 27. Bxd5 {[%emt 0:00:45]} Nxd5 {[%emt 0:00:04]} 28. Qxe5 {[%emt 0:00:08]} Qxe5 {[%emt 0:00:29]} 29. Rxe5 {[%emt 0:00:04]} Ra1 {[%emt 0:01:13]} 30. Rxd5 {[%emt 0:00:37]} Rxc1+ {[%emt 0:00:04]} 31. Kg2 {[%emt 0:00:43]} Rc2+ {[%emt 0:04:07]} 1/2-1/2

[Event "XIII Mediterranean Championship 2023"]
[Site "Castell-Platja d Aro"]
[Date "2023.11.07"]
[Round "5.26"]
[White "Canigueral Salvado, Jaume"]
[Black "Leon Escoda, Manel"]
[Result "1/2-1/2"]
[ECO "B55"]
[WhiteElo "1853"]
[BlackElo "1682"]
[Annotator "NA RC"]
[PlyCount "109"]
[EventDate "2023.10.26"]
[EventType "swiss"]
[EventCountry "ESP"]
[SourceTitle "playchess.com"]
[Source "ChessBase"]
[SourceQuality "1"]
[TimeControl "5400+30"]

1. e4 {[%emt 1:31:00]} c5 {[%emt 1:31:00]} 2. Nf3 {[%emt 0:00:30]} d6 {[%emt 0:00:30]} 3. d4 {[%emt 0:00:30]} cxd4 {[%emt 0:00:30]} 4. Nxd4 {[%emt 0:00:30]} Nf6 {[%emt 0:00:30]} 5. Bb5+ {[%emt 0:00:30]} Nbd7 {[%emt 0:00:30]} 6. Nc3 {[%emt 0:00:30]} a6 {[%emt 0:00:30]} 7. Bxd7+ {[%emt 0:00:30]} Bxd7 {[%emt 0:00:30]} 8. O-O {[%emt 0:00:30]} e6 {[%emt 0:00:30]} 9. h3 {[%emt 0:00:30]} Be7 {[%emt 0:00:30]} 10. Be3 {[%emt 0:00:30]} b5 {[%emt 0:00:30]} 11. a3 {[%emt 0:00:30]} O-O {[%emt 0:00:30]} 12. Qd2 {[%emt 0:00:30]} Rc8 {[%emt 0:00:30]} 13. Rad1 {[%emt 0:00:30]} Qc7 {[%emt 0:00:30]} 14. Bg5 {[%emt 0:00:30]} Rfd8 {[%emt 0:00:30]} 15. Rfe1 {[%emt 0:00:30]} Qc4 {[%emt 0:00:30]} 16. Nf3 {[%emt 0:00:30]} b4 {[%emt 0:00:30]} 17. axb4 {[%emt 0:00:30]} h6 {[%emt 0:00:30]} 18. Bf4 {[%emt 0:00:30]} Bc6 {[%emt 0:00:30]} 19. Qd4 {[%emt 0:00:30]} Bb7 {[%emt 0:00:30]} 20. Qb6 {[%emt 0:00:30]} Bxe4 {[%emt 0:00:30]} 21. Rd4 {[%emt 0:00:30]} Qc6 {[%emt 0:00:30]} 22. Qxc6 {[%emt 0:00:30]} Bxc6 {[%emt 0:00:30]} 23. Rdd1 {[%emt 0:00:30]} Nd5 {[%emt 0:00:30]} 24. Nxd5 {[%emt 0:00:30]} Bxd5 {[%emt 0:00:30]} 25. Rxd5 {[%emt 0:00:30]} exd5 {[%emt 0:00:30]} 26. Rxe7 {[%emt 0:00:30]} Rxc2 {[%emt 0:00:30]} 27. Ra7 {[%emt 0:00:30]} Rxb2 {[%emt 0:00:30]} 28. Rxa6 {[%emt 0:00:30]} Rb1+ {[%emt 0:00:30]} 29. Kh2 {[%emt 0:00:30]} Rxb4 {[%emt 0:00:30]} 30. Bxd6 {[%emt 0:00:30]} Rc4 {[%emt 0:00:30]} 31. Be7 {[%emt 0:00:30]} Re8 {[%emt 0:00:30]} 32. Ba3 {[%emt 0:00:30]} Re2 {[%emt 0:00:30]} 33. Rd6 {[%emt 0:00:30]} Rxf2 {[%emt 0:00:30]} 34. Rxd5 {[%emt 0:00:30]} Rcc2 {[%emt 0:00:30]} 35. Ne1 {[%emt 0:00:30]} Rce2 {[%emt 0:00:30]} 36. Bc5 {[%emt 0:00:30]} Rf1 {[%emt 0:00:30]} 37. Nd3 {[%emt 0:00:30]} Rd1 {[%emt 0:00:30]} 38. Bb4 {[%emt 0:00:30]} Re3 {[%emt 0:00:30]} 39. Nf4 {[%emt 0:00:30]} Rxd5 {[%emt 0:00:30]} 40. Nxd5 {[%emt 0:00:30]} Rd3 {[%emt 0:00:30]} 41. Ne7+ {[%emt 0:00:30]} Kh7 {[%emt 0:00:30]} 42. Nf5 {[%emt 0:00:30]} g6 {[%emt 0:00:30]} 43. Ng3 {[%emt 0:00:30]} f5 {[%emt 0:00:30]} 44. Nf1 {[%emt 0:00:30]} g5 {[%emt 0:00:30]} 45. Bc5 {[%emt 0:00:30]} Kg6 {[%emt 0:00:30]} 46. Ng3 {[%emt 0:00:30]} h5 {[%emt 0:00:30]} 47. Ne2 {[%emt 0:00:30]} h4 {[%emt 0:00:30]} 48. Bg1 {[%emt 0:00:30]} Rd2 {[%emt 0:00:30]} 49. Nc3 {[%emt 0:00:30]} Rc2 {[%emt 0:00:30]} 50. Nd5 {[%emt 0:00:30]} g4 {[%emt 0:00:30]} 51. hxg4 {[%emt 0:00:30]} fxg4 {[%emt 0:00:30]} 52. Ne3 {[%emt 0:00:30]} g3+ {[%emt 0:00:30]} 53. Kh3 {[%emt 0:00:30]} Rc1 {[%emt 0:00:30]} 54. Kxh4 {[%emt 0:00:30]} Rxg1 {[%emt 0:00:30]} 55. Kxg3 {[%emt 0:00:30]} 1/2-1/2

[Event "XIII Mediterranean Championship 2023"]
[Site "Castell-Platja d Aro"]
[Date "2023.11.07"]
[Round "5.27"]
[White "Vidal Traves, Marti"]
[Black "Garcia Rodriguez, Laia"]
[Result "1-0"]
[ECO "E01"]
[WhiteElo "1631"]
[BlackElo "1811"]
[Annotator "NA RC"]
[PlyCount "101"]
[EventDate "2023.10.26"]
[EventType "swiss"]
[EventCountry "ESP"]
[SourceTitle "playchess.com"]
[Source "ChessBase"]
[SourceQuality "1"]
[TimeControl "5400+30"]

1. d4 {[%emt 0:05:59]} d5 {[%emt 0:00:19]} 2. c4 {[%emt 0:00:05]} c6 {[%emt 0:00:20]} 3. Nf3 {[%emt 0:00:14]} Nf6 {[%emt 0:00:18]} 4. g3 {[%emt 0:00:57]} e6 {[%emt 0:00:53]} 5. Bg2 {[%emt 0:01:01]} Nbd7 {[%emt 0:01:12]} 6. O-O {[%emt 0:00:39]} Bd6 {[%emt 0:01:25]} 7. Nbd2 {[%emt 0:04:35]} O-O {[%emt 0:03:08]} 8. Qc2 {[%emt 0:02:09]} b6 {[%emt 0:01:27]} 9. e4 {[%emt 0:01:28]} dxe4 {[%emt 0:08:01]} 10. Nxe4 {[%emt 0:00:19]} Nxe4 {[%emt 0:01:19]} 11. Qxe4 {[%emt 0:00:09]} Bb7 {[%emt 0:01:47]} 12. Ne5 {[%emt 0:05:50]} Nxe5 {[%emt 0:04:16]} 13. dxe5 {[%emt 0:00:29]} Bc5 {[%emt 0:01:16]} 14. Be3 {[%emt 0:04:21]} Qe7 {[%emt 0:05:28]} 15. Bxc5 {[%emt 0:06:14]} Qxc5 {[%emt 0:00:19]} 16. Rab1 {[%emt 0:10:58]} a5 {[%emt 0:07:41]} 17. a3 {[%emt 0:02:48]} a4 {[%emt 0:59:51]} 18. Rfd1 {[%emt 0:06:17]} Rfd8 {[%emt 0:00:00]} 19. Rbc1 {[%emt 0:03:26]} h6 {[%emt 0:00:00]} 20. Qh4 {[%emt 0:05:37]} Rxd1+ {[%emt 0:00:00]} 21. Rxd1 {[%emt 0:00:01]} Qxe5 {[%emt 0:00:00]} 22. Rd8+ {[%emt 0:01:05]} Rxd8 {[%emt 0:00:00]} 23. Qxd8+ {[%emt 0:00:08]} Kh7 {[%emt 0:00:00]} 24. Qxb6 {[%emt 0:00:22]} Bc8 {[%emt 0:00:00]} 25. Qxc6 {[%emt 0:02:37]} Qb8 {[%emt 0:00:00]} 26. Qxa4 {[%emt 0:02:38]} Qxb2 {[%emt 0:00:00]} 27. h4 {[%emt 0:08:11]} e5 {[%emt 0:00:00]} 28. Qb4 {[%emt 0:03:01]} Qc1+ {[%emt 0:00:00]} 29. Kh2 {[%emt 0:00:22]} Be6 {[%emt 0:00:00]} 30. Qc5 {[%emt 0:04:38]} Qxc4 {[%emt 0:00:00]} 31. Qxe5 {[%emt 0:00:15]} Qa2 {[%emt 0:00:00]} 32. Qe3 {[%emt 0:01:04]} h5 {[%emt 0:00:00]} 33. Be4+ {[%emt 0:01:16]} g6 {[%emt 0:00:00]} 34. Qf3 {[%emt 0:00:51]} Bg4 {[%emt 0:00:00]} 35. Qf4 {[%emt 0:02:23]} Kg7 {[%emt 0:00:00]} 36. Qe5+ {[%emt 0:00:30]} Kg8 {[%emt 0:00:47]} 37. Qc5 {[%emt 0:01:51]} Qe2 {[%emt 0:01:35]} 38. Qe3 {[%emt 0:00:44]} Qa2 {[%emt 0:00:36]} 39. Kg2 {[%emt 0:00:23]} Be6 {[%emt 0:00:18]} 40. Qc3 {[%emt 0:00:50]} Qe2 {[%emt 0:00:57]} 41. Bc6 {[%emt 0:01:22]} Bc4 {[%emt 0:00:43]} 42. Qe3 {[%emt 0:01:28]} Qa2 {[%emt 0:00:55]} 43. a4 {[%emt 0:00:43]} Be6 {[%emt 0:00:32]} 44. Qc5 {[%emt 0:00:40]} Bc4 {[%emt 0:01:58]} 45. a5 {[%emt 0:01:03]} Qe2 {[%emt 0:00:12]} 46. Qb6 {[%emt 0:00:54]} Qf1+ {[%emt 0:00:25]} 47. Kh2 {[%emt 0:00:16]} Ba6 {[%emt 0:00:41]} 48. Bd5 {[%emt 0:01:53]} Kg7 {[%emt 0:01:21]} 49. Qd4+ {[%emt 0:00:24]} Kh7 {[%emt 0:02:11]} 50. Qf6 {[%emt 0:00:20]} Bc8 {[%emt 0:00:48]} 51. Qxf7+ {[%emt 0:00:30]} 1-0